bitfinex/quotes_BTCUSD_20250813
["timestamp","ask_amount","ask_price","bid_price","bid_amount"]
[1755123028421,0.00494,122810.0,122800.0,0.94859351]
[1755123028830,0.00494,122810.0,122800.0,1.07615351]
[1755123029031,0.00494,122810.0,122800.0,0.94859351]
[1755123029265,0.00494,122810.0,122800.0,1.07615351]
[1755123030237,0.00494,122810.0,122800.0,0.50418357]
[1755123030438,0.00494,122810.0,122800.0,0.94859351]
[1755123030952,0.00494,122810.0,122800.0,1.07615351]
[1755123031583,0.00494,122810.0,122800.0,1.37271351]
[1755123031789,0.00494,122810.0,122800.0,1.27123351]
[1755123032532,0.00708,122810.0,122800.0,0.37662357]
[1755123032686,0.00708,122810.0,122800.0,0.63820754]
[1755123032891,0.00708,122810.0,122800.0,1.05171251]
[1755123033443,0.00708,122810.0,122800.0,0.76572754]
[1755123034449,0.00708,122810.0,122800.0,0.47974257]
[1755123034654,0.00708,122810.0,122800.0,0.76572754]
[1755123036412,0.00708,122810.0,122800.0,0.47974257]
[1755123036742,0.00708,122810.0,122800.0,0.76572754]
[1755123036877,0.00708,122810.0,122800.0,0.63820754]
[1755123037083,0.00708,122810.0,122800.0,0.76568754]
[1755123041033,0.00708,122810.0,122800.0,0.74117448]
[1755123041443,0.00708,122810.0,122800.0,0.84265448]
[1755123041660,0.00708,122810.0,122800.0,1.03781448]
[1755123042071,0.00708,122810.0,122800.0,1.06182269]
[1755123042434,0.00708,122810.0,122800.0,1.34780766]
[1755123043578,0.00708,122810.0,122800.0,0.77579772]
[1755123043869,0.00708,122810.0,122800.0,1.06178269]
[1755123044301,0.00708,122810.0,122800.0,0.93434269]
[1755123044514,0.66177319,122810.0,122800.0,0.19516]
[1755123044728,0.68618019,122810.0,122770.0,0.28598497]
[1755123044953,0.28598497,122780.0,122760.0,0.04841915]
[1755123045174,0.00214,122770.0,122760.0,0.30999612]
[1755123045384,0.00214,122770.0,122760.0,0.64999612]
[1755123045584,0.0051,122770.0,122760.0,0.62598497]
[1755123045909,0.0051,122770.0,122760.0,0.75338497]
[1755123046313,0.00714922,122770.0,122760.0,0.4674]
[1755123046554,0.00914922,122770.0,122760.0,0.75338497]
[1755123046755,0.00914922,122770.0,122760.0,0.4674]
[1755123046954,0.00914922,122770.0,122760.0,0.84895041]
[1755123048147,0.00914922,122770.0,122760.0,0.72155041]
[1755123048302,0.00914922,122770.0,122760.0,0.84895041]
[1755123048727,0.00914922,122770.0,122760.0,0.34]
[1755123049077,0.00914922,122770.0,122760.0,0.84895041]
[1755123049434,0.09187247,122770.0,122760.0,0.34]
[1755123049652,0.09187247,122770.0,122760.0,0.1274]
[1755123049967,0.09187247,122770.0,122750.0,0.39355862]
[1755123050218,0.00404922,122770.0,122760.0,0.76310082]
[1755123050436,0.00404922,122770.0,122760.0,1.13655082]
[1755123050661,0.00404922,122770.0,122760.0,1.34667407]
[1755123050890,0.00404922,122770.0,122760.0,1.67702607]
[1755123050891,0.00204922,122770.0,122760.0,1.67702607]
[1755123051087,4.922e-05,122770.0,122760.0,1.49746607]
[1755123051292,0.00304922,122770.0,122760.0,1.62486607]
[1755123051545,0.00604922,122770.0,122760.0,1.82994807]
[1755123051775,0.00304922,122770.0,122760.0,1.74479407]
[1755123052003,0.00304922,122770.0,122760.0,0.53516]
[1755123052004,4.922e-05,122770.0,122760.0,0.53516]
[1755123052246,0.00400922,122770.0,122760.0,0.84895041]
[1755123052667,0.00400922,122770.0,122760.0,0.72155041]
[1755123052877,0.00400922,122770.0,122760.0,0.84895041]
[1755123053076,0.00500922,122770.0,122760.0,0.84895041]
[1755123053623,0.00714922,122770.0,122760.0,0.12736]
[1755123053841,0.00714922,122770.0,122760.0,0.34]
[1755123054064,0.00714922,122770.0,122760.0,0.46736]
[1755123054307,0.00714922,122770.0,122760.0,0.12736]
[1755123054520,0.00614922,122770.0,122760.0,0.46736]
[1755123054736,0.00514922,122770.0,122760.0,0.34]
[1755123054949,0.00514922,122770.0,122760.0,0.46736]
[1755123055153,0.00714922,122770.0,122760.0,0.46736]
[1755123056248,0.00914922,122770.0,122760.0,0.46736]
[1755123057012,0.00914922,122770.0,122760.0,0.34]
[1755123057200,0.00914922,122770.0,122760.0,0.46736]
[1755123060135,0.00914922,122770.0,122760.0,0.12736]
[1755123060351,0.00914922,122770.0,122750.0,0.39202518]
[1755123060553,0.00618922,122770.0,122760.0,0.12736]
[1755123061184,0.00935922,122770.0,122760.0,0.12736]
[1755123061398,0.00735922,122770.0,122760.0,0.12736]
[1755123061604,0.00735922,122770.0,122760.0,0.42404]
[1755123061848,0.00835922,122770.0,122760.0,0.42404]
[1755123061980,0.00835922,122770.0,122760.0,0.80559041]
[1755123062195,0.00521922,122770.0,122760.0,0.42404]
[1755123062393,0.00728922,122770.0,122760.0,0.42404]
[1755123062593,0.00621922,122770.0,122760.0,0.80559041]
[1755123062809,0.00304922,122770.0,122760.0,1.32006877]
[1755123063059,0.00304922,122770.0,122760.0,1.54131407]
[1755123063265,0.027579,122810.0,122800.0,0.38155041]
[1755123063441,0.08594251,122810.0,122800.0,0.12732]
[1755123063638,0.08801251,122810.0,122800.0,0.12732]
[1755123064060,0.46956292,122810.0,122780.0,0.38155041]
[1755123064275,0.00317,122800.0,122770.0,0.75452041]
[1755123064621,0.46832292,122810.0,122780.0,0.51090657]
[1755123064791,0.08677251,122810.0,122780.0,0.50887041]
[1755123065161,0.08977251,122810.0,122780.0,0.50887041]
[1755123065559,0.08677251,122810.0,122780.0,0.50887041]
[1755123066342,0.15362022,122810.0,122780.0,0.38155041]
[1755123066518,0.00317,122800.0,122790.0,0.12728]
[1755123066766,0.00524,122800.0,122790.0,0.12728]
[1755123067683,0.00724,122800.0,122770.0,0.36297]
[1755123067900,0.00407,122800.0,122770.0,0.71155041]
[1755123068132,0.00317,122790.0,122770.0,0.71155041]
[1755123068935,0.00317,122790.0,122780.0,0.12728]
[1755123069380,0.00524,122790.0,122780.0,0.12728]
[1755123070149,0.00724,122790.0,122780.0,0.12728]
[1755123070576,0.07408771,122790.0,122780.0,0.12728]
[1755123070773,0.07408771,122790.0,122770.0,0.34]
[1755123071085,0.00317,122780.0,122770.0,0.34]
[1755123071313,0.00524,122780.0,122770.0,0.46724]
[1755123071629,0.00524,122780.0,122770.0,0.76392]
[1755123072227,0.00524,122780.0,122770.0,0.32244]
[1755123073553,0.00524,122780.0,122770.0,0.12724]
[1755123073719,0.07001771,122790.0,122770.0,0.51082673]
[1755123073924,0.15274096,122790.0,122770.0,0.50879041]
[1755123074572,0.00317,122780.0,122770.0,0.50879041]
[1755123074765,0.00417,122780.0,122770.0,0.50879041]
[1755123074930,0.001,122780.0,122770.0,0.50879041]
[1755123075702,0.00417,122780.0,122770.0,0.50879041]
[1755123076650,0.00417,122780.0,122770.0,0.22130159]
[1755123076891,0.00517,122780.0,122770.0,0.22130159]
[1755123077903,0.00517,122780.0,122770.0,0.34850159]
[1755123078637,0.002,122780.0,122770.0,0.34850159]
[1755123080260,0.00517,122780.0,122770.0,0.34850159]
[1755123080461,0.00724,122780.0,122770.0,0.1272]
[1755123081532,0.00724,122780.0,122770.0,0.42388]
[1755123081743,0.00724,122780.0,122770.0,0.80543041]
[1755123081945,0.00724,122780.0,122770.0,0.42388]
[1755123083154,0.00517,122780.0,122770.0,0.42388]
[1755123083361,0.002,122780.0,122770.0,0.80543041]
[1755123083966,0.002,122780.0,122770.0,0.48303041]
[1755123084176,0.002,122780.0,122770.0,0.80539041]
[1755123084826,0.002,122780.0,122770.0,0.57675041]
[1755123085102,0.002,122780.0,122770.0,0.50867041]
[1755123085360,0.002,122780.0,122770.0,0.84867041]
[1755123085535,0.002,122780.0,122770.0,0.96356366]
[1755123087750,0.002,122780.0,122770.0,0.95856366]
[1755123088738,0.002,122780.0,122770.0,0.97485428]
[1755123089980,0.002,122780.0,122770.0,2.72635128]
[1755123090524,0.002,122780.0,122770.0,2.85347128]
[1755123090731,0.002,122780.0,122770.0,2.87787528]
[1755123090908,0.002,122780.0,122770.0,2.75075528]
[1755123091208,0.002,122780.0,122770.0,2.87787528]
[1755123091408,0.001,122780.0,122770.0,2.87787528]
[1755123091628,0.001,122780.0,122770.0,3.27603528]
[1755123091783,0.001,122780.0,122770.0,3.27703528]
[1755123091981,0.001,122780.0,122770.0,2.94695528]
[1755123092435,0.001,122780.0,122770.0,3.07403528]
[1755123092590,0.001,122780.0,122770.0,2.87883528]
[1755123093020,0.11689697,122810.0,122780.0,0.02443272]
[1755123093249,0.06684771,122790.0,122780.0,0.02443272]
[1755123093452,0.06684771,122790.0,122780.0,1.97091113]
[1755123093651,0.06684771,122790.0,122780.0,1.99531213]
[1755123093872,0.06684771,122790.0,122780.0,1.81283613]
[1755123094829,0.06684771,122790.0,122780.0,1.81383613]
[1755123095535,0.06684771,122790.0,122780.0,1.89655938]
[1755123096165,0.06684771,122790.0,122780.0,1.89755938]
[1755123101546,0.06684771,122790.0,122780.0,2.19419938]
[1755123101837,0.06684771,122790.0,122780.0,2.19415938]
[1755123102032,0.06684771,122790.0,122780.0,1.96563938]
[1755123102461,0.06684771,122790.0,122780.0,2.09263938]
[1755123102919,0.12012697,122810.0,122790.0,0.35628796]
[1755123103069,0.12012697,122810.0,122800.0,0.50855041]
[1755123103304,0.12213697,122810.0,122800.0,0.50855041]
[1755123104609,0.12213697,122810.0,122800.0,0.84855041]
[1755123105016,0.12112697,122810.0,122800.0,0.84855041]
[1755123105218,0.11789697,122810.0,122800.0,0.86483705]
[1755123105852,0.12112697,122810.0,122800.0,0.86483705]
[1755123106043,0.12212697,122810.0,122800.0,0.86483705]
[1755123108098,0.12413697,122810.0,122800.0,0.86483705]
[1755123108798,0.12413697,122810.0,122800.0,0.88923705]
[1755123111616,0.12413697,122810.0,122800.0,1.18587705]
[1755123114096,0.05728926,122810.0,122800.0,1.18587705]
[1755123114373,0.05728926,122810.0,122800.0,1.08439705]
[1755123114592,0.05527926,122810.0,122800.0,1.08439705]
[1755123115474,0.05527926,122810.0,122800.0,1.05999705]
[1755123117026,0.05729926,122810.0,122800.0,1.05999705]
[1755123117762,0.05729926,122810.0,122800.0,0.86483705]
[1755123117974,0.05204926,122810.0,122800.0,2.61878971]
[1755123118655,0.05618926,122810.0,122800.0,0.42272325]
[1755123119086,0.05518926,122810.0,122800.0,0.55060325]
[1755123119409,0.05518926,122810.0,122800.0,0.55160325]
[1755123119991,0.05518926,122810.0,122800.0,0.46888]
[1755123120838,0.05518926,122810.0,122800.0,0.342]
[1755123121016,0.05518926,122810.0,122800.0,0.46888]
[1755123121635,0.43673967,122810.0,122800.0,0.63864]
[1755123122124,0.43673967,122810.0,122800.0,0.76552]
[1755123122772,0.43673967,122810.0,122800.0,0.66304]
[1755123123003,0.43873967,122810.0,122800.0,0.66204]
[1755123123402,0.44073967,122810.0,122800.0,0.66204]
[1755123123652,0.44073967,122810.0,122800.0,0.12688]
[1755123127174,0.52346292,122810.0,122800.0,0.12684]
[1755123127902,0.52346292,122810.0,122780.0,0.34]
[1755123128051,0.00312,122800.0,122790.0,0.46684]
[1755123128228,0.00514,122800.0,122790.0,0.46684]
[1755123128887,0.00514,122800.0,122790.0,0.34]
[1755123129088,0.00514,122800.0,122790.0,0.46684]
[1755123129326,0.38669041,122800.0,122760.0,0.024405]
[1755123129539,0.00312,122790.0,122770.0,0.12684]
[1755123129742,0.00312,122790.0,122780.0,0.12684]
[1755123129954,0.00514,122790.0,122780.0,0.12684]
[1755123130383,0.38669041,122790.0,122760.0,0.024405]
[1755123130617,0.38357041,122790.0,122770.0,0.12684]
[1755123130796,0.00312,122780.0,122770.0,0.12684]
[1755123130992,0.00514,122780.0,122770.0,0.12684]
[1755123131210,0.00514,122780.0,122770.0,0.46684]
[1755123131612,0.00514,122780.0,122770.0,0.76348]
[1755123133460,0.00514,122780.0,122770.0,0.63664]
[1755123133661,0.00514,122780.0,122770.0,0.76344]
[1755123135671,0.00514,122780.0,122770.0,0.66196]
[1755123137229,0.00514,122780.0,122770.0,0.53516]
[1755123137423,0.00514,122780.0,122770.0,0.66196]
[1755123137665,0.00514,122780.0,122770.0,0.53616]
[1755123137866,0.00514,122780.0,122770.0,0.66296]
[1755123138386,0.00514,122780.0,122770.0,0.66396]
[1755123138786,0.00514,122780.0,122770.0,0.4688]
[1755123139157,0.00514,122780.0,122770.0,0.342]
[1755123139389,0.00514,122780.0,122770.0,0.4688]
[1755123139603,0.00514,122780.0,122770.0,0.85035041]
[1755123139984,0.00312,122780.0,122770.0,0.85035041]
[1755123140207,0.00312,122780.0,122770.0,0.72355041]
[1755123140372,0.00312,122780.0,122770.0,0.85035041]
[1755123141535,0.00312,122790.0,122770.0,1.14703041]
[1755123142066,0.00312,122790.0,122780.0,0.12676]
[1755123142274,0.00514,122790.0,122780.0,0.12676]
[1755123142487,0.00312,122800.0,122780.0,0.38358657]
[1755123142667,0.05004926,122810.0,122790.0,0.50831041]
[1755123142898,0.13589251,122810.0,122790.0,0.12676]
[1755123143069,0.00312,122800.0,122790.0,0.50831041]
[1755123143433,0.05316926,122810.0,122790.0,0.50831041]
[1755123143645,0.05316926,122810.0,122800.0,0.50831041]
[1755123143871,0.05416926,122810.0,122800.0,0.50831041]
[1755123144053,0.05104926,122810.0,122800.0,0.50831041]
[1755123144787,0.05004926,122810.0,122800.0,0.50831041]
[1755123145164,0.05630926,122810.0,122790.0,0.38155041]
[1755123145385,0.05220926,122810.0,122800.0,0.12879583]
[1755123145592,0.43575967,122810.0,122770.0,0.34]
[1755123145770,0.43575967,122810.0,122790.0,0.34]
[1755123145989,0.05620926,122810.0,122800.0,0.12676]
[1755123146578,0.05730926,122810.0,122800.0,0.12676]
[1755123146967,0.05830926,122810.0,122800.0,0.12676]
[1755123147369,0.05730926,122810.0,122800.0,0.12676]
[1755123147574,0.05930926,122810.0,122800.0,0.12676]
[1755123149662,0.14203251,122810.0,122770.0,0.34]
[1755123149869,0.0031,122800.0,122780.0,0.12672]
[1755123150252,0.00216,122790.0,122780.0,0.46672]
[1755123150735,0.00526,122790.0,122780.0,0.46672]
[1755123151240,0.00526,122790.0,122780.0,0.84827041]
[1755123151427,0.00526,122790.0,122780.0,0.84823041]
[1755123151560,0.00526,122790.0,122780.0,1.14487041]
[1755123153955,0.00526,122790.0,122780.0,1.01819041]
[1755123154109,0.00526,122790.0,122780.0,0.76332]
[1755123154742,0.00526,122790.0,122780.0,0.19516]
[1755123154911,0.00526,122790.0,122780.0,0.32184]
[1755123155521,0.00526,122790.0,122780.0,0.19516]
[1755123155760,0.00526,122790.0,122780.0,0.32184]
[1755123156546,0.00526,122790.0,122760.0,0.38155041]
[1755123156755,0.0031,122780.0,122770.0,0.46664]
[1755123157034,0.0031,122780.0,122770.0,0.84819041]
[1755123157616,0.0031,122780.0,122770.0,0.72155041]
[1755123157789,0.0031,122780.0,122770.0,0.84819041]
[1755123158491,0.0031,122780.0,122770.0,0.84919041]
[1755123159652,0.00526,122780.0,122770.0,0.84919041]
[1755123159763,0.00526,122780.0,122770.0,0.001]
[1755123159968,0.00526,122780.0,122770.0,0.12764]
[1755123160167,0.00526,122780.0,122770.0,0.001]
[1755123160404,0.00526,122780.0,122770.0,0.12864]
[1755123160833,0.00526,122780.0,122770.0,0.12664]
[1755123161243,0.00526,122780.0,122770.0,0.50819041]
[1755123161446,0.00526,122780.0,122770.0,0.80487041]
[1755123162825,0.00526,122780.0,122770.0,0.42332]
[1755123164740,0.00526,122780.0,122770.0,0.80487041]
[1755123166237,0.00526,122780.0,122770.0,0.42332]
[1755123166438,0.00526,122780.0,122770.0,0.80487041]
[1755123166813,0.00526,122780.0,122770.0,0.70335041]
[1755123168620,0.00526,122780.0,122770.0,0.1266]
[1755123168821,0.00526,122780.0,122770.0,0.50815041]
[1755123170422,0.00526,122780.0,122770.0,0.38155041]
[1755123170624,0.00526,122780.0,122770.0,0.50815041]
[1755123171557,0.00526,122780.0,122770.0,0.80483041]
[1755123172923,0.00526,122780.0,122770.0,0.42328]
[1755123173678,0.00526,122780.0,122770.0,0.29668]
[1755123175545,0.00724,122780.0,122770.0,0.32176]
[1755123175901,0.00724,122780.0,122770.0,0.1952]
[1755123176100,0.00724,122780.0,122770.0,0.12652]
[1755123176712,0.00624,122780.0,122770.0,0.12652]
[1755123177478,0.47051366,122780.0,122770.0,0.12652]
[1755123177601,0.08796325,122780.0,122770.0,0.12652]
[1755123177799,0.08896325,122780.0,122770.0,0.12652]
[1755123178002,0.15681096,122780.0,122770.0,0.12652]
[1755123178212,0.15581096,122780.0,122770.0,0.12652]
[1755123178397,0.17922496,122780.0,122770.0,0.12652]
[1755123178601,0.18322496,122780.0,122750.0,0.39234133]
[1755123178827,0.18322496,122780.0,122760.0,0.12652]
[1755123178828,0.08580325,122770.0,122760.0,0.12652]
[1755123179033,0.08789325,122770.0,122760.0,0.12652]
[1755123179234,0.08580325,122770.0,122760.0,0.50807041]
[1755123179656,0.002,122780.0,122760.0,0.88962082]
[1755123179849,0.002,122780.0,122770.0,0.38358673]
[1755123179992,0.00308,122800.0,122770.0,0.38155041]
[1755123180194,0.08580325,122800.0,122780.0,0.50807041]
[1755123180825,0.08580325,122800.0,122790.0,0.38155041]
[1755123181030,0.08580325,122800.0,122790.0,0.50807041]
[1755123181265,0.05,122810.0,122790.0,0.38155041]
[1755123181470,0.002,122800.0,122790.0,0.12652]
[1755123181685,0.001,122800.0,122790.0,0.80475041]
[1755123181889,0.00808,122800.0,122790.0,0.80575041]
[1755123182242,0.00408,122800.0,122790.0,0.80475041]
[1755123183150,0.00308,122800.0,122790.0,0.80475041]
[1755123183584,0.00308,122800.0,122790.0,0.80471041]
[1755123183990,0.05308,122810.0,122790.0,0.57675041]
[1755123184198,0.003,122800.0,122790.0,0.70323041]
[1755123185133,0.002,122800.0,122790.0,0.70323041]
[1755123186717,0.002,122800.0,122790.0,0.50803041]
[1755123187364,0.003,122800.0,122790.0,0.50803041]
[1755123187789,0.00608,122800.0,122790.0,0.50803041]
[1755123191618,0.00608,122800.0,122790.0,0.80471041]
[1755123192790,0.003,122800.0,122790.0,0.80463041]
[1755123194787,0.00608,122800.0,122790.0,0.80463041]
[1755123194962,0.003,122800.0,122790.0,0.80463041]
[1755123195940,0.003,122800.0,122790.0,0.42308]
[1755123196140,0.003,122800.0,122790.0,0.80463041]
[1755123196861,0.003,122800.0,122790.0,0.70315041]
[1755123199154,0.00817,122800.0,122790.0,0.70315041]
[1755123199956,0.00817,122800.0,122790.0,0.50791041]
[1755123200319,0.00817,122800.0,122790.0,0.38155041]
[1755123200729,0.00817,122800.0,122790.0,0.50791041]
[1755123201410,0.00817,122800.0,122790.0,0.38155041]
[1755123201628,0.00608,122800.0,122790.0,0.80451041]
[1755123202722,0.00817,122800.0,122790.0,0.80451041]
[1755123204040,0.00817,122800.0,122790.0,0.42296]
[1755123204282,0.00817,122800.0,122790.0,0.32148]
[1755123204470,0.15774096,122800.0,122790.0,0.12632]
[1755123205516,0.15774096,122800.0,122770.0,0.40155041]
[1755123205737,0.00311,122790.0,122780.0,0.12632]
[1755123205968,0.00515,122790.0,122780.0,0.12632]
[1755123208338,0.00515,122790.0,122770.0,0.40155041]
[1755123208522,0.00615,122790.0,122780.0,0.12628]
[1755123208704,0.00311,122780.0,122770.0,0.38389942]
[1755123208918,0.00515,122780.0,122770.0,0.51017942]
[1755123209544,0.00515,122780.0,122770.0,0.361]
[1755123209749,0.00515,122780.0,122770.0,0.86983041]
[1755123209959,0.00515,122780.0,122770.0,0.48828]
[1755123210178,0.00515,122780.0,122770.0,0.86983041]
[1755123210382,0.00515,122780.0,122770.0,0.74255041]
[1755123210587,0.00515,122780.0,122770.0,0.48828]
[1755123210789,0.00515,122780.0,122770.0,0.48728]
[1755123211401,0.00515,122780.0,122770.0,0.48628]
[1755123211606,0.00515,122780.0,122770.0,0.44292]
[1755123211796,0.00615,122780.0,122770.0,0.44292]
[1755123212170,0.00615,122780.0,122770.0,0.31664]
[1755123212554,0.00615,122780.0,122770.0,0.21516]
[1755123212894,0.00615,122780.0,122770.0,0.3414]
[1755123213046,0.00615,122780.0,122770.0,0.02]
[1755123213539,0.00615,122780.0,122770.0,0.14624]
[1755123214543,0.00615,122780.0,122770.0,0.02]
[1755123214749,0.00615,122780.0,122770.0,0.14624]
[1755123215078,0.00615,122780.0,122770.0,0.02]
[1755123215491,0.00615,122780.0,122770.0,0.14624]
[1755123216067,0.00615,122780.0,122770.0,0.02]
[1755123216425,0.00615,122780.0,122770.0,0.14624]
[1755123217010,0.00615,122780.0,122760.0,0.25627146]
[1755123217350,0.00311,122770.0,122760.0,0.59627146]
[1755123218138,0.00311,122770.0,122760.0,0.72251146]
[1755123218360,0.00311,122770.0,122760.0,0.72351146]
[1755123218605,0.00311,122770.0,122760.0,0.72251146]
[1755123218976,0.00311,122770.0,122760.0,0.72351146]
[1755123219620,0.00311,122770.0,122760.0,0.59727146]
[1755123219763,0.00311,122770.0,122760.0,0.72451146]
[1755123220172,0.00311,122770.0,122760.0,0.72351146]
[1755123220416,0.00311,122770.0,122760.0,0.59727146]
[1755123220592,0.00311,122770.0,122760.0,0.72447146]
[1755123221002,0.00311,122770.0,122760.0,0.70019195]
[1755123221443,0.00311,122770.0,122760.0,0.67547195]
[1755123221624,0.00311,122770.0,122760.0,0.99687195]
[1755123223114,0.00311,122770.0,122760.0,1.02152229]
[1755123224507,0.00311,122770.0,122760.0,0.92004229]
[1755123225301,0.00311,122770.0,122760.0,0.36665034]
[1755123225502,0.00311,122770.0,122760.0,0.87440075]
[1755123227212,0.00515,122770.0,122760.0,0.87440075]
[1755123228183,0.00515,122770.0,122760.0,0.87340075]
[1755123228622,0.003707,122770.0,122760.0,0.87544075]
[1755123228854,0.003707,122770.0,122760.0,0.36673034]
[1755123229068,0.003707,122770.0,122760.0,0.87444075]
[1755123229417,0.001667,122770.0,122760.0,0.74828075]
[1755123229754,0.001,122770.0,122760.0,1.16211116]
[1755123230134,0.001,122770.0,122760.0,2.30878236]
[1755123230343,0.001,122770.0,122760.0,2.43494236]
[1755123231542,0.001,122770.0,122760.0,2.73162236]
[1755123232359,0.001,122770.0,122760.0,2.60546236]
[1755123232709,0.001,122770.0,122760.0,2.73162236]
[1755123233291,0.001,122770.0,122760.0,2.57041644]
[1755123234450,0.001,122770.0,122760.0,2.46893644]
[1755123234863,0.06684771,122800.0,122770.0,0.02443472]
[1755123235165,0.06684771,122800.0,122790.0,0.38366041]
[1755123235429,0.06684771,122800.0,122790.0,0.23059375]
[1755123235850,0.06684771,122800.0,122790.0,0.57059375]
[1755123236539,0.07192771,122800.0,122790.0,0.69671375]
[1755123236944,0.07392771,122800.0,122790.0,0.69671375]
[1755123237145,0.07392771,122800.0,122790.0,0.57059375]
[1755123237490,0.07392771,122800.0,122790.0,0.69671375]
[1755123237702,0.07392771,122800.0,122790.0,0.57059375]
[1755123237904,0.07692771,122800.0,122790.0,0.57059375]
[1755123238088,0.07692771,122800.0,122790.0,0.69667375]
[1755123238288,0.07692771,122800.0,122790.0,0.46819]
[1755123238502,0.005,122800.0,122790.0,0.72366041]
[1755123238646,0.0081,122800.0,122790.0,0.72366041]
[1755123238846,0.01008,122800.0,122790.0,0.72366041]
[1755123239053,0.01008,122800.0,122790.0,0.72155041]
[1755123239516,0.00808,122800.0,122790.0,0.84763041]
[1755123239714,0.00908,122800.0,122790.0,0.84763041]
[1755123239928,0.01108,122800.0,122790.0,0.84763041]
[1755123240661,0.01108,122800.0,122790.0,0.34]
[1755123241115,0.01108,122800.0,122790.0,0.46608]
[1755123241497,0.01108,122800.0,122790.0,1.14431041]
[1755123241741,0.01108,122800.0,122790.0,0.76276]
[1755123242311,0.01108,122800.0,122790.0,0.76487]
[1755123242715,0.01108,122800.0,122790.0,0.76276]
[1755123244809,0.01108,122800.0,122790.0,0.76487]
[1755123245018,0.006,122800.0,122790.0,1.02034041]
[1755123245218,0.006,122800.0,122790.0,1.14638041]
[1755123245455,0.006,122800.0,122790.0,1.04490041]
[1755123245605,0.006,122800.0,122790.0,0.92046041]
[1755123245824,0.006,122800.0,122790.0,1.04650041]
[1755123246452,0.006,122800.0,122790.0,0.66495]
[1755123247803,0.006,122800.0,122790.0,0.46975]
[1755123248509,0.006,122800.0,122790.0,0.35999797]
[1755123248715,0.006,122800.0,122790.0,0.34371]
[1755123248921,0.006,122800.0,122790.0,0.46975]
[1755123249330,0.006,122800.0,122790.0,0.34211]
[1755123249736,0.006,122800.0,122790.0,0.46975]
[1755123250334,0.006,122800.0,122790.0,0.34211]
[1755123250946,0.006,122800.0,122790.0,0.46811]
[1755123251475,0.006,122800.0,122790.0,0.56959]
[1755123251696,0.006,122800.0,122790.0,0.76475]
[1755123256017,0.01108,122800.0,122790.0,0.53516]
[1755123256355,0.01108,122800.0,122790.0,0.66116]
[1755123256774,0.01108,122800.0,122790.0,0.34]
[1755123256976,0.39237702,122800.0,122760.0,0.02465034]
[1755123257178,0.0031,122790.0,122760.0,0.08272325]
[1755123257450,0.0031,122790.0,122760.0,0.58272325]
[1755123257593,0.0031,122790.0,122770.0,0.34]
[1755123257931,0.00198,122780.0,122770.0,0.34]
[1755123258334,0.00508,122780.0,122770.0,0.46596]
[1755123258711,0.00508,122780.0,122770.0,0.46807]
[1755123258917,0.005,122800.0,122770.0,0.46807]
[1755123259128,0.0031,122790.0,122770.0,0.00211]
[1755123259350,0.0031,122790.0,122780.0,0.12596]
[1755123259573,0.00508,122790.0,122780.0,0.12596]
[1755123260472,0.00508,122790.0,122780.0,0.12799616]
[1755123260790,0.00608,122790.0,122780.0,0.12799616]
[1755123261617,0.00608,122790.0,122780.0,0.42463616]
[1755123261806,0.00608,122790.0,122780.0,0.4226]
[1755123262010,0.00608,122790.0,122780.0,0.42471]
[1755123262011,0.001,122790.0,122780.0,0.42471]
[1755123262176,0.001,122790.0,122780.0,0.80604152]
[1755123263026,0.001,122790.0,122780.0,0.68008152]
[1755123263215,0.001,122790.0,122780.0,0.38344152]
[1755123263414,0.001,122790.0,122780.0,0.70456152]
[1755123264577,0.001,122790.0,122780.0,0.92020152]
[1755123264779,0.001,122790.0,122780.0,1.06245081]
[1755123265503,0.001,122790.0,122780.0,1.20376581]
[1755123266530,0.001,122790.0,122780.0,1.00860581]
[1755123267152,0.001,122790.0,122780.0,0.99231652]
[1755123268283,0.001,122790.0,122780.0,1.00860581]
[1755123269539,0.001,122790.0,122780.0,1.09128906]
[1755123271452,0.001,122790.0,122780.0,1.26200906]
[1755123271674,0.001,122790.0,122780.0,1.38792906]
[1755123271868,0.001,122790.0,122780.0,1.28644906]
[1755123272404,0.001,122790.0,122780.0,1.09128906]
[1755123272582,0.001,122790.0,122780.0,0.96536906]
[1755123272786,0.001,122790.0,122780.0,1.09128906]
[1755123273160,0.001,122790.0,122780.0,0.96536906]
[1755123273362,0.001,122790.0,122780.0,1.12262906]
[1755123273777,0.001,122790.0,122780.0,1.37804058]
[1755123274126,0.001,122790.0,122780.0,1.52323012]
[1755123274386,0.001,122790.0,122780.0,1.1418986]
[1755123274577,0.001,122790.0,122780.0,1.52323012]
[1755123275372,0.001,122790.0,122780.0,1.50396058]
[1755123275787,0.001,122790.0,122780.0,1.12262906]
[1755123276786,0.001,122790.0,122780.0,1.52835958]
[1755123277347,0.001,122790.0,122780.0,1.14702806]
[1755123278127,0.001,122790.0,122780.0,1.14902806]
[1755123278314,0.05,122810.0,122800.0,0.01628664]
[1755123278514,0.05,122810.0,122800.0,2.87402159]
[1755123278723,0.05,122810.0,122800.0,2.80264793]
[1755123279072,0.05,122810.0,122800.0,2.78636129]
[1755123279521,0.05049268,122810.0,122800.0,2.78736129]
[1755123279836,0.05049268,122810.0,122800.0,2.78836129]
[1755123281479,0.05049268,122810.0,122800.0,2.96962729]
[1755123281686,0.05347268,122810.0,122800.0,2.94400729]
[1755123281960,0.05543268,122810.0,122800.0,1.91301277]
[1755123282170,0.05543268,122810.0,122800.0,1.78506277]
[1755123282371,0.05543268,122810.0,122800.0,1.91090277]
[1755123282712,0.05543268,122810.0,122800.0,1.91297277]
[1755123283160,0.05543268,122810.0,122800.0,1.78713277]
[1755123283328,0.05543268,122810.0,122800.0,1.91297277]
[1755123283714,0.05543268,122810.0,122800.0,1.72884377]
[1755123284663,0.05347268,122810.0,122800.0,2.00869529]
[1755123287603,0.05543268,122810.0,122800.0,2.00869529]
[1755123288317,0.05543268,122810.0,122800.0,1.62736377]
[1755123288520,0.05543268,122810.0,122800.0,1.43220377]
[1755123289108,0.05543268,122810.0,122800.0,0.92503225]
[1755123289309,0.05543268,122810.0,122800.0,1.82978193]